Workbook

Sheet Analysis
A1: Portfolio Analysis
A2: Purchase Date | B2: Code | C2: Company Name | D2: Shares Units | E2: Purchase Price/Unit | F2: Commissions | G2: Total cost | H2: Current price | I2: Market value | J2: Increase / Decrease | K2: % Increase or Decrease | L2: CAGR Monthly % | M2: Duration Months | N2: CAGR Yearly % | O2: Duration Years | P2: Current Date
A3: 2015-03-19 | B3: =+'EQ061016'!A7 -> 500012 | C3: =+'EQ061016'!B7 -> ANDHRA PETRO | D3: 300 | E3: ₹ 12.50 | F3: =D3*E3*1% -> ₹ 37.50 | G3: =D3*E3+F3 -> ₹ 3,787.50 | H3: =+'EQ061016'!I7 -> ₹ 16.95 | I3: =H3*D3 -> ₹ 5,085.00 | J3: =I3-G3 -> ₹ 1,297.50 | K3: =J3/G3*100 -> 34.26 | L3: =1*(((I3/G3)^(1/M3)-1)*100) -> 1.57 | M3: =(P3-A3)/30 -> 18.9 | N3: =1*(((I3/G3)^(1/O3)-1)*100) -> 20.84 | O3: =(P3-A3)/365 -> 1.6 | P3: =TODAY() -> 2016-10-07
A4: 2015-04-01 | B4: =+'EQ061016'!A20 -> 500034 | C4: =+'EQ061016'!B20 -> BAJFINANCE | D4: 500 | E4: ₹ 625.00 | F4: =D4*E4*1% -> ₹ 3,125.00 | G4: =D4*E4+F4 -> ₹ 315,625.00 | H4: =+'EQ061016'!I20 -> ₹ 1,077.85 | I4: =H4*D4 -> ₹ 538,925.00 | J4: =I4-G4 -> ₹ 223,300.00 | K4: =J4/G4*100 -> 70.75 | L4: =1*(((I4/G4)^(1/M4)-1)*100) -> 2.93 | M4: =(P4-A4)/30 -> 18.5 | N4: =1*(((I4/G4)^(1/O4)-1)*100) -> 42.17 | O4: =(P4-A4)/365 -> 1.5 | P4: =TODAY() -> 2016-10-07
A5: 2015-05-12 | B5: =+'EQ061016'!A33 -> 500060 | C5: =+'EQ061016'!B33 -> BIRLACABLE | D5: 150 | E5: ₹ 45.00 | F5: ₹ 67.50 | G5: =D5*E5+F5 -> ₹ 6,817.50 | H5: =+'EQ061016'!I33 -> ₹ 38.30 | I5: =H5*D5 -> ₹ 5,745.00 | J5: =I5-G5 -> ₹ -1,072.50 | K5: =J5/G5*100 -> (15.73) | L5: =1*(((I5/G5)^(1/M5)-1)*100) -> (0.99) | M5: =(P5-A5)/30 -> 17.1 | N5: =1*(((I5/G5)^(1/O5)-1)*100) -> (11.44) | O5: =(P5-A5)/365 -> 1.4 | P5: 2016-10-07
A6: 2015-05-18 | B6: =+'EQ061016'!A42 -> 500086 | C6: =+'EQ061016'!B42 -> EXIDE IND. | D6: 200 | E6: ₹ 250.00 | F6: ₹ 500.00 | G6: =D6*E6+F6 -> ₹ 50,500.00 | H6: =+'EQ061016'!I42 -> ₹ 192.60 | I6: =H6*D6 -> ₹ 38,520.00 | J6: =I6-G6 -> ₹ -11,980.00 | K6: =J6/G6*100 -> (23.72) | L6: =1*(((I6/G6)^(1/M6)-1)*100) -> (1.59) | M6: =(P6-A6)/30 -> 16.9 | N6: =1*(((I6/G6)^(1/O6)-1)*100) -> (17.68) | O6: =(P6-A6)/365 -> 1.4 | P6: 2016-10-07
A7: 2015-05-31 | B7: =+'EQ061016'!A43 -> 500087 | C7: =+'EQ061016'!B43 -> CIPLA LTD. | D7: 300 | E7: ₹ 350.00 | F7: ₹ 1,050.00 | G7: =D7*E7+F7 -> ₹ 106,050.00 | H7: =+'EQ061016'!I43 -> ₹ 579.15 | I7: =H7*D7 -> ₹ 173,745.00 | J7: =I7-G7 -> ₹ 67,695.00 | K7: =J7/G7*100 -> 63.83 | L7: =1*(((I7/G7)^(1/M7)-1)*100) -> 3.04 | M7: =(P7-A7)/30 -> 16.5 | N7: =1*(((I7/G7)^(1/O7)-1)*100) -> 43.91 | O7: =(P7-A7)/365 -> 1.4 | P7: 2016-10-07
A8: 2015-06-04 | B8: =+'EQ061016'!A51 -> 500103 | C8: =+'EQ061016'!B51 -> BHEL | D8: 500 | E8: ₹ 75.00 | F8: ₹ 375.00 | G8: =D8*E8+F8 -> ₹ 37,875.00 | H8: =+'EQ061016'!I51 -> ₹ 136.25 | I8: =H8*D8 -> ₹ 68,125.00 | J8: =I8-G8 -> ₹ 30,250.00 | K8: =J8/G8*100 -> 79.87 | L8: =1*(((I8/G8)^(1/M8)-1)*100) -> 3.65 | M8: 16.4 | N8: =1*(((I8/G8)^(1/O8)-1)*100) -> 54.71 | O8: 1.3 | P8: 2016-10-07
A9: 2015-12-15 | B9: =+'EQ061016'!A61 -> 500116 | C9: =+'EQ061016'!B61 -> IDBI BANK L | D9: 100 | E9: ₹ 65.00 | F9: ₹ 65.00 | G9: ₹ 6,565.00 | H9: =+'EQ061016'!I61 -> ₹ 69.85 | I9: ₹ 6,985.00 | J9: ₹ 420.00 | K9: 6.40 | L9: 0.63 | M9: 9.9 | N9: 7.92 | O9: 0.8 | P9: 2016-10-07
A10: 2016-01-12 | B10: =+'EQ061016'!A97 -> 500179 | C10: =+'EQ061016'!B97 -> HCL INFOSYS | D10: 250 | E10: ₹ 56.00 | F10: ₹ 140.00 | G10: ₹ 14,140.00 | H10: =+'EQ061016'!I97 -> ₹ 52.30 | I10: ₹ 13,075.00 | J10: ₹ -1,065.00 | K10: (7.53) | L10: (0.87) | M10: 9.0 | N10: (10.08) | O10: 0.7 | P10: 2016-10-07
A11: 2016-03-01 | B11: =+'EQ061016'!A179 -> 500325 | C11: =+'EQ061016'!B179 -> RELIANCE | D11: 230 | E11: ₹ 850.00 | F11: ₹ 1,955.00 | G11: ₹ 197,455.00 | H11: =+'EQ061016'!I179 -> ₹ 1,111.10 | I11: ₹ 255,553.00 | J11: ₹ 58,098.00 | K11: 29.42 | L11: 3.58 | M11: 7.3 | N11: 53.40 | O11: 0.6 | P11: 2016-10-07
A12: 2016-04-22 | B12: =+'EQ061016'!A210 -> 500400 | C12: =+'EQ061016'!B210 -> TATA POWER | D12: 150 | E12: ₹ 82.00 | F12: ₹ 123.00 | G12: ₹ 12,423.00 | H12: =+'EQ061016'!I210 -> ₹ 78.80 | I12: ₹ 11,820.00 | J12: ₹ -603.00 | K12: (4.85) | L12: (0.88) | M12: 5.6 | N12: (10.25) | O12: 0.5 | P12: 2016-10-07
A13: 2016-05-15 | B13: =+'EQ061016'!A225 -> 500425 | C13: =+'EQ061016'!B225 -> AMBUJA CEME | D13: 110 | E13: ₹ 123.00 | F13: ₹ 135.30 | G13: ₹ 13,665.30 | H13: =+'EQ061016'!I225 -> ₹ 253.00 | I13: ₹ 27,830.00 | J13: ₹ 14,164.70 | K13: 103.65 | L13: 15.85 | M13: 4.8 | N13: 499.18 | O13: 0.4 | P13: 2016-10-07
A14: 2016-07-01 | B14: =+'EQ061016'!A2363 -> 532921 | C14: =+'EQ061016'!B2363 -> ADANI PORTS | D14: 200 | E14: ₹ 110.00 | F14: ₹ 220.00 | G14: ₹ 22,220.00 | H14: =+'EQ061016'!I2363 -> ₹ 264.65 | I14: ₹ 52,930.00 | J14: ₹ 30,710.00 | K14: 138.21 | L14: 30.44 | M14: 3.3 | N14: 2434.99 | O14: 0.3 | P14: 2016-10-07
A15: 2016-08-03 | B15: =+'EQ061016'!A2445 -> 533096 | C15: =+'EQ061016'!B2445 -> ADANI POWER | D15: 500 | E15: ₹ 22.00 | F15: ₹ 110.00 | G15: ₹ 11,110.00 | H15: =+'EQ061016'!I2445 -> ₹ 25.45 | I15: ₹ 12,725.00 | J15: ₹ 1,615.00 | K15: 14.54 | L15: 6.46 | M15: 2.2 | N15: 114.28 | O15: 0.2 | P15: 2016-10-07
C21: Total | D21: =SUM(D3:D20) -> 3490 | F21: =SUM(F3:F20) -> ₹ 7,903.30 | G21: =SUM(G3:G20) -> ₹ 798,233.30 | I21: =SUM(I3:I20) -> ₹ 1,211,063.00 | J21: =SUM(J3:J20) -> ₹ 412,829.70

Sheet EQ061016
A1: SC_CODE | B1: SC_NAME | C1: SC_GROUP | D1: SC_TYPE | E1: OPEN | F1: HIGH | G1: LOW | H1: CLOSE | I1: LAST | J1: PREVCLOSE | K1: NO_TRADES | L1: NO_OF_SHRS | M1: NET_TURNOV | N1: TDCLOINDI
A2: 500002 | B2: ABB LTD. | C2: A | D2: Q | E2: 1171.65 | F2: 1183.4 | G2: 1157.5 | H2: 1166.85 | I2: 1166.85 | J2: 1170.2 | K2: 947 | L2: 2929 | M2: 3428412
A3: 500003 | B3: AEGIS LOGIS | C3: B | D3: Q | E3: 162 | F3: 162 | G3: 152 | H3: 155.9 | I3: 155 | J3: 161.5 | K3: 980 | L3: 72322 | M3: 11346926
A4: 500008 | B4: AMAR RAJA BA | C4: A | D4: Q | E4: 1060 | F4: 1067 | G4: 1035 | H4: 1040.35 | I4: 1040.35 | J4: 1054.8 | K4: 929 | L4: 21417 | M4: 22562513
A5: 500009 | B5: A.SARABHAI | C5: XD | D5: Q | E5: 7.66 | F5: 7.66 | G5: 7.05 | H5: 7.24 | I5: 7.25 | J5: 7.27 | K5: 91 | L5: 30594 | M5: 222490
A6: 500010 | B6: HDFC | C6: A | D6: Q | E6: 1424.9 | F6: 1433 | G6: 1420 | H6: 1423.8 | I6: 1423.8 | J6: 1420.8 | K6: 1690 | L6: 29616 | M6: 42231357
A7: 500012 | B7: ANDHRA PETRO | C7: XC | D7: Q | E7: 16.3 | F7: 17.2 | G7: 16.02 | H7: 16.71 | I7: 16.95 | J7: 16.02 | K7: 438 | L7: 194114 | M7: 3275983
A8: 500013 | B8: ANSAL INFRAS | C8: B | D8: Q | E8: 19.25 | F8: 19.65 | G8: 18.75 | H8: 19.2 | I8: 18.75 | J8: 19.3 | K8: 103 | L8: 29315 | M8: 568600
A9: 500014 | B9: APPLE FINANC | C9: XD | D9: Q | E9: 2.3 | F9: 2.68 | G9: 2.11 | H9: 2.31 | I9: 2.31 | J9: 2.29 | K9: 78 | L9: 51859 | M9: 120252
A10: 500020 | B10: BOM DYEING | C10: B | D10: Q | E10: 58.45 | F10: 61.65 | G10: 56.6 | H10: 57.75 | I10: 57.75 | J10: 57.9 | K10: 14240 | L10: 3963232 | M10: 235557806
A11: 500023 | B11: ASIANHOTNR | C11: B | D11: Q | E11: 102.2 | F11: 104.45 | G11: 99.5 | H11: 100 | I11: 100 | J11: 104 | K11: 19 | L11: 4149 | M11: 419803
A12: 500024 | B12: ASSAMCO | C12: B | D12: Q | E12: 6.2 | F12: 6.38 | G12: 5.92 | H12: 6 | I12: 6 | J12: 6.14 | K12: 786 | L12: 851210 | M12: 5272239
A13: 500027 | B13: ATUL LTD. | C13: A | D13: Q | E13: 2466 | F13: 2466 | G13: 2370.1 | H13: 2383.4 | I13: 2383.4 | J13: 2437.6 | K13: 576 | L13: 3447 | M13: 8347769
A14: 500028 | B14: ATV PROJECTS | C14: XT | D14: Q | E14: 6.82 | F14: 6.82 | G14: 6.21 | H14: 6.82 | I14: 6.82 | J14: 6.5 | K14: 43 | L14: 18569 | M14: 124328
A15: 500029 | B15: AUTOLITE(I) | C15: B | D15: Q | E15: 63 | F15: 68.15 | G15: 62.7 | H15: 63.3 | I15: 63.3 | J15: 63.2 | K15: 495 | L15: 40717 | M15: 2653267
A16: 500030 | B16: AUTORID.FIN | C16: T | D16: Q | E16: 0.78 | F16: 0.78 | G16: 0.78 | H16: 0.78 | I16: 0.78 | J16: 0.75 | K16: 1 | L16: 3000 | M16: 2340
A17: 500031 | B17: BAJAJ ELECT. | C17: A | D17: Q | E17: 267.2 | F17: 268.55 | G17: 260.95 | H17: 262.6 | I17: 262.6 | J17: 267.1 | K17: 570 | L17: 26794 | M17: 7126116
A18: 500032 | B18: BAJAJHIND | C18: B | D18: Q | E18: 17.35 | F18: 17.45 | G18: 16.8 | H18: 16.95 | I18: 16.95 | J18: 17.2 | K18: 801 | L18: 433316 | M18: 7447246
A19: 500033 | B19: FORCE MOTR | C19: B | D19: Q | E19: 3892 | F19: 3990 | G19: 3855.05 | H19: 3886.6 | I19: 3886.6 | J19: 3871.2 | K19: 20626 | L19: 298675 | M19: 1171491347
A20: 500034 | B20: BAJFINANCE | C20: A | D20: Q | E20: 1074 | F20: 1104.65 | G20: 1067.7 | H20: 1077.85 | I20: 1077.85 | J20: 1072.65 | K20: 5330 | L20: 92764 | M20: 100896738
A21: 500038 | B21: BALRAM.CHINI | C21: A | D21: Q | E21: 111.15 | F21: 113.2 | G21: 109.4 | H21: 110.25 | I21: 110.25 | J21: 110.7 | K21: 1965 | L21: 240503 | M21: 26838094
A22: 500039 | B22: BANCO PROD. | C22: B | D22: Q | E22: 220.2 | F22: 222.1 | G22: 214.05 | H22: 215.2 | I22: 215.2 | J22: 218.35 | K22: 1523 | L22: 83926 | M22: 18400958
A23: 500040 | B23: CENTURY TEXT | C23: A | D23: Q | E23: 966 | F23: 972 | G23: 952.45 | H23: 957.7 | I23: 957.7 | J23: 961.55 | K23: 2651 | L23: 104168 | M23: 100334101
A24: 500041 | B24: BANNARI AMAN | C24: B | D24: Q | E24: 1995 | F24: 2019.7 | G24: 1943.25 | H24: 1999.9 | I24: 2000 | J24: 1987.6 | K24: 117 | L24: 11413 | M24: 22589742
A25: 500042 | B25: BASF INDIA | C25: B | D25: Q | E25: 1213.4 | F25: 1228.2 | G25: 1202.7 | H25: 1208.65 | I25: 1208.65 | J25: 1215.4 | K25: 254 | L25: 1528 | M25: 1859488
A26: 500043 | B26: BATA INDIA | C26: A | D26: Q | E26: 493.7 | F26: 496.5 | G26: 484 | H26: 486.2 | I26: 486.2 | J26: 491.85 | K26: 1395 | L26: 49045 | M26: 24144033
A27: 500048 | B27: BEML LTD | C27: A | D27: Q | E27: 905 | F27: 925.7 | G27: 905 | H27: 911.85 | I27: 911.85 | J27: 904.05 | K27: 2945 | L27: 55105 | M27: 50539949
A28: 500049 | B28: BHARAT ELECT | C28: A | D28: Q | E28: 1275 | F28: 1284.95 | G28: 1265.25 | H28: 1272.3 | I28: 1272.3 | J28: 1272.95 | K28: 1364 | L28: 26274 | M28: 33577598
A29: 500052 | B29: BHANSALI ENG | C29: B | D29: Q | E29: 21.45 | F29: 22.65 | G29: 21.35 | H29: 21.55 | I29: 21.75 | J29: 21.15 | K29: 759 | L29: 197012 | M29: 4333151
A30: 500055 | B30: BHUSH STEEL | C30: B | D30: Q | E30: 43.8 | F30: 44.4 | G30: 43.4 | H30: 43.85 | I30: 44.05 | J30: 43.55 | K30: 763 | L30: 83530 | M30: 3661696
A31: 500058 | B31: BIHAR SPONGE | C31: XT | D31: Q | E31: 2.04 | F31: 2.18 | G31: 2.04 | H31: 2.13 | I31: 2.13 | J31: 2.13 | K31: 15 | L31: 3550 | M31: 7609
A32: 500059 | B32: BINANI IND. | C32: B | D32: Q | E32: 106.7 | F32: 111.6 | G32: 105.6 | H32: 107.5 | I32: 107.5 | J32: 105.45 | K32: 953 | L32: 49122 | M32: 5317961
A33: 500060 | B33: BIRLACABLE | C33: T | D33: Q | E33: 39.4 | F33: 39.5 | G33: 37.9 | H33: 38.45 | I33: 38.3 | J33: 38.1 | K33: 91 | L33: 29686 | M33: 1141959
A34: 500067 | B34: BLUE STAR | C34: B | D34: Q | E34: 568.95 | F34: 577.95 | G34: 563.65 | H34: 574 | I34: 574.8 | J34: 569.6 | K34: 547 | L34: 8074 | M34: 4606793
A35: 500068 | B35: DISA INDIA | C35: XC | D35: Q | E35: 4505 | F35: 4505 | G35: 4466 | H35: 4476.75 | I35: 4466 | J35: 4549 | K35: 16 | L35: 50 | M35: 224774
A36: 500069 | B36: BNK CAPITAL | C36: XD | D36: Q | E36: 37.95 | F36: 37.95 | G36: 36 | H36: 36 | I36: 36 | J36: 36 | K36: 21 | L36: 2642 | M36: 98026
A37: 500074 | B37: BPL LTD. | C37: B | D37: Q | E37: 97.4 | F37: 98.05 | G37: 92.8 | H37: 94.15 | I37: 94.15 | J37: 94.35 | K37: 3592 | L37: 421928 | M37: 40480728
A38: 500078 | B38: CAMPH.& ALL | C38: XC | D38: Q | E38: 750 | F38: 760 | G38: 740 | H38: 744.5 | I38: 740 | J38: 757.95 | K38: 71 | L38: 1829 | M38: 1367193
A39: 500083 | B39: CENTURY EXT | C39: B | D39: Q | E39: 6.87 | F39: 6.87 | G39: 6.87 | H39: 6.87 | I39: 6.87 | J39: 6.55 | K39: 126 | L39: 285228 | M39: 1959516
A40: 500084 | B40: CESC LTD. | C40: A | D40: Q | E40: 615 | F40: 628.7 | G40: 609.8 | H40: 623.6 | I40: 622.65 | J40: 614.2 | K40: 1535 | L40: 47490 | M40: 29448000
A41: 500085 | B41: CHAMBAL FERT | C41: B | D41: Q | E41: 59.7 | F41: 60.35 | G41: 59 | H41: 59.15 | I41: 59.15 | J41: 59.7 | K41: 1084 | L41: 106595 | M41: 6366769
A42: 500086 | B42: EXIDE IND. | C42: A | D42: Q | E42: 194.25 | F42: 197.85 | G42: 191.25 | H42: 192.6 | I42: 192.6 | J42: 194.45 | K42: 3073 | L42: 331698 | M42: 64707004
A43: 500087 | B43: CIPLA LTD. | C43: A | D43: Q | E43: 592.8 | F43: 596.65 | G43: 577.1 | H43: 579.15 | I43: 579.15 | J43: 592.8 | K43: 3755 | L43: 140871 | M43: 83196794
A44: 500089 | B44: DIC INDIA | C44: B | D44: Q | E44: 541.2 | F44: 549 | G44: 520.95 | H44: 527.55 | I44: 527.55 | J44: 539.6 | K44: 121 | L44: 3036 | M44: 1617897
A45: 500092 | B45: CRISIL LTD | C45: A | D45: Q | E45: 2445 | F45: 2470 | G45: 2412 | H45: 2440.2 | I45: 2450 | J45: 2432.4 | K45: 399 | L45: 916 | M45: 2236106
A46: 500093 | B46: CROMPT.GREAV | C46: A | D46: Q | E46: 78 | F46: 79.4 | G46: 75.8 | H46: 77 | I46: 77 | J46: 78.7 | K46: 1149 | L46: 218540 | M46: 17032985
A47: 500096 | B47: DABUR (I) | C47: A | D47: Q | E47: 283.1 | F47: 288.15 | G47: 283.1 | H47: 285.9 | I47: 285.9 | J47: 282.9 | K47: 1575 | L47: 109163 | M47: 31218443
A48: 500097 | B48: DALMIASUG | C48: B | D48: Q | E48: 120.5 | F48: 127.4 | G48: 116.65 | H48: 118.5 | I48: 118.5 | J48: 118.65 | K48: 1478 | L48: 48585 | M48: 5904518
A49: 500101 | B49: ARVIND Ltd | C49: A | D49: Q | E49: 355.2 | F49: 364.8 | G49: 353.25 | H49: 357.75 | I49: 357.75 | J49: 353 | K49: 4148 | L49: 278221 | M49: 100265559
A50: 500102 | B50: BALARPUR IND | C50: B | D50: Q | E50: 14.7 | F50: 14.75 | G50: 13.94 | H50: 14.03 | I50: 14.03 | J50: 14.5 | K50: 986 | L50: 372939 | M50: 5348080
A51: 500103 | B51: BHEL | C51: A | D51: Q | E51: 137.1 | F51: 139.9 | G51: 136 | H51: 136.25 | I51: 136.25 | J51: 137.05 | K51: 6903 | L51: 892772 | M51: 123330356
A52: 500104 | B52: HIND.PETRO | C52: A | D52: Q | E52: 438 | F52: 459.4 | G52: 435.7 | H52: 451.3 | I52: 451.3 | J52: 434.35 | K52: 12878 | L52: 700735 | M52: 316686801
A53: 500106 | B53: IFCI LTD | C53: A | D53: Q | E53: 26.5 | F53: 26.9 | G53: 26 | H53: 26.25 | I53: 26.25 | J53: 26.65 | K53: 1369 | L53: 884710 | M53: 23386794
A54: 500108 | B54: MAHA.TELE | C54: B | D54: Q | E54: 20 | F54: 20.2 | G54: 19.65 | H54: 19.7 | I54: 19.7 | J54: 20 | K54: 427 | L54: 147125 | M54: 2931120
A55: 500109 | B55: MRPL | C55: A | D55: Q | E55: 90.45 | F55: 90.7 | G55: 88.25 | H55: 88.7 | I55: 88.7 | J55: 89.35 | K55: 1237 | L55: 168368 | M55: 15096717
A56: 500110 | B56: CHENNAI PET. | C56: B | D56: Q | E56: 297.95 | F56: 303.35 | G56: 288.05 | H56: 294.35 | I56: 294.35 | J56: 288.45 | K56: 5004 | L56: 304078 | M56: 90146806
A57: 500111 | B57: REL.CAP. | C57: A | D57: Q | E57: 580 | F57: 585.9 | G57: 565.55 | H57: 570.6 | I57: 570.6 | J57: 577.6 | K57: 13214 | L57: 694347 | M57: 401125471
A58: 500112 | B58: STATE BANK | C58: A | D58: Q | E58: 261.7 | F58: 261.9 | G58: 255.8 | H58: 256.85 | I58: 256.85 | J58: 260.55 | K58: 10342 | L58: 1416758 | M58: 367198238
A59: 500113 | B59: STEEL AUTH. | C59: A | D59: Q | E59: 48.65 | F59: 49 | G59: 47.5 | H59: 47.85 | I59: 47.85 | J59: 48.6 | K59: 1361 | L59: 387519 | M59: 18711639
A60: 500114 | B60: TITAN | C60: A | D60: Q | E60: 408.4 | F60: 409 | G60: 396 | H60: 398.95 | I60: 398.95 | J60: 405.1 | K60: 1995 | L60: 54883 | M60: 22130991
A61: 500116 | B61: IDBI BANK L | C61: A | D61: Q | E61: 71.6 | F61: 71.9 | G61: 69.25 | H61: 69.85 | I61: 69.85 | J61: 71.3 | K61: 1953 | L61: 394007 | M61: 27752007
A62: 500117 | B62: DCW LTD. | C62: B | D62: Q | E62: 32.5 | F62: 32.75 | G62: 29.85 | H62: 30.85 | I62: 30.85 | J62: 32 | K62: 2742 | L62: 1096396 | M62: 34316586
A63: 500119 | B63: DHAMPUR SUGA | C63: B | D63: Q | E63: 129 | F63: 132.25 | G63: 127.6 | H63: 130.75 | I63: 130.75 | J63: 127.85 | K63: 1303 | L63: 133752 | M63: 17350102
A64: 500120 | B64: DIAMINES&CHM | C64: XD | D64: Q | E64: 47.45 | F64: 49 | G64: 46.4 | H64: 46.4 | I64: 46.4 | J64: 47.8 | K64: 49 | L64: 4616 | M64: 222852
A65: 500123 | B65: ELANTAS | C65: B | D65: Q | E65: 1650 | F65: 1707 | G65: 1650 | H65: 1692.9 | I65: 1692.9 | J65: 1655.9 | K65: 141 | L65: 1337 | M65: 2248142
A66: 500124 | B66: DR.REDDY'S | C66: A | D66: Q | E66: 3124 | F66: 3124 | G66: 3063.05 | H66: 3077.65 | I66: 3080 | J66: 3121.15 | K66: 1846 | L66: 27424 | M66: 84848609
A67: 500125 | B67: E.I.D.PAR | C67: A | D67: Q | E67: 268.8 | F67: 274.8 | G67: 261.3 | H67: 263.9 | I67: 263.9 | J67: 267.2 | K67: 2246 | L67: 94754 | M67: 25594427
A68: 500126 | B68: MERCK LTD | C68: B | D68: Q | E68: 714.35 | F68: 730 | G68: 711 | H68: 713 | I68: 712.25 | J68: 711.8 | K68: 298 | L68: 3218 | M68: 2320119
A69: 500128 | B69: ELEC.CASTING | C69: B | D69: Q | E69: 23.15 | F69: 24.25 | G69: 23.15 | H69: 23.35 | I69: 23.45 | J69: 23.2 | K69: 736 | L69: 269342 | M69: 6376710
A70: 500132 | B70: EMPEE SUGARS | C70: XD | D70: Q | E70: 6.55 | F70: 7.53 | G70: 6.1 | H70: 7.53 | I70: 7.53 | J70: 6.28 | K70: 367 | L70: 220888 | M70: 1628911
A71: 500133 | B71: ESAB INDIA | C71: B | D71: Q | E71: 596 | F71: 596 | G71: 592.5 | H71: 595 | I71: 595 | J71: 603.4 | K71: 9 | L71: 102 | M71: 60697
A72: 500135 | B72: ESSEL PROP | C72: B | D72: Q | E72: 231 | F72: 248.7 | G72: 228.4 | H72: 244.4 | I72: 246 | J72: 229.1 | K72: 734 | L72: 29827 | M72: 7196942
A73: 500136 | B73: ESTER INDUS. | C73: B | D73: Q | E73: 49 | F73: 53.3 | G73: 47.8 | H73: 48.5 | I73: 48.5 | J73: 48.85 | K73: 1883 | L73: 150071 | M73: 7756596
A74: 500139 | B74: FEDDER.LLYOD | C74: B | D74: Q | E74: 76.8 | F74: 80.45 | G74: 76.7 | H74: 77.55 | I74: 77.55 | J74: 76.25 | K74: 1488 | L74: 119826 | M74: 9474114
A75: 500141 | B75: FERRO ALLOYS | C75: XD | D75: Q | E75: 8.35 | F75: 8.35 | G75: 7.26 | H75: 7.43 | I75: 7.5 | J75: 8.06 | K75: 521 | L75: 326842 | M75: 2522182
A76: 500142 | B76: FGP LTD. | C76: XD | D76: Q | E76: 2.18 | F76: 2.18 | G76: 2.1 | H76: 2.1 | I76: 2.1 | J76: 2.08 | K76: 2 | L76: 512 | M76: 1091
A77: 500143 | B77: P.H.CAPITAL | C77: XD | D77: Q | E77: 24.3 | F77: 25.5 | G77: 24.3 | H77: 25.5 | I77: 25.5 | J77: 24.3 | K77: 8 | L77: 1390 | M77: 34726
A78: 500144 | B78: FINOL. CABLE | C78: A | D78: Q | E78: 450 | F78: 450.95 | G78: 439.2 | H78: 447.35 | I78: 446.95 | J78: 448.15 | K78: 384 | L78: 8023 | M78: 3577682
A79: 500147 | B79: CMI FPE | C79: XC | D79: Q | E79: 391.1 | F79: 399 | G79: 391.05 | H79: 397 | I79: 397 | J79: 390.05 | K79: 15 | L79: 605 | M79: 237550
A80: 500148 | B80: UFLEX LTD | C80: B | D80: Q | E80: 319.7 | F80: 324.5 | G80: 311 | H80: 314.35 | I80: 314.35 | J80: 316.9 | K80: 2731 | L80: 101364 | M80: 32325328
A81: 500150 | B81: FOSECO INDIA | C81: B | D81: Q | E81: 1459 | F81: 1470 | G81: 1443.25 | H81: 1449.85 | I81: 1443.25 | J81: 1447.85 | K81: 49 | L81: 487 | M81: 711410
A82: 500151 | B82: GOLDEN TOB | C82: B | D82: Q | E82: 44.5 | F82: 44.5 | G82: 42.35 | H82: 42.7 | I82: 43.75 | J82: 44.7 | K82: 36 | L82: 4950 | M82: 213703
A83: 500153 | B83: GANESH BENZO | C83: XC | D83: Q | E83: 38.7 | F83: 40.2 | G83: 38.5 | H83: 38.65 | I83: 38.65 | J83: 39.15 | K83: 305 | L83: 109386 | M83: 4313492
A84: 500155 | B84: GARDEN SILK | C84: B | D84: Q | E84: 30.85 | F84: 32.2 | G84: 30.75 | H84: 30.85 | I84: 30.85 | J84: 31.3 | K84: 152 | L84: 23422 | M84: 741944
A85: 500159 | B85: METROGLOBL | C85: XC | D85: Q | E85: 70.7 | F85: 77.2 | G85: 68.05 | H85: 72.55 | I85: 73.4 | J85: 67 | K85: 62 | L85: 4400 | M85: 324730
A86: 500160 | B86: GTL LTD. | C86: B | D86: Q | E86: 21.15 | F86: 21.15 | G86: 19.05 | H86: 19.1 | I86: 19.1 | J86: 21.15 | K86: 3754 | L86: 785709 | M86: 15584265
A87: 500162 | B87: PARRYSUGR | C87: B | D87: Q | E87: 41.4 | F87: 42 | G87: 39.65 | H87: 41.45 | I87: 41.45 | J87: 40.8 | K87: 7 | L87: 1059 | M87: 44206
A88: 500163 | B88: GODFREY PH | C88: B | D88: Q | E88: 1316 | F88: 1325 | G88: 1280 | H88: 1289 | I88: 1289 | J88: 1308.35 | K88: 1557 | L88: 26391 | M88: 34210764
A89: 500164 | B89: GODREJ IND | C89: A | D89: Q | E89: 447.9 | F89: 457.4 | G89: 442.8 | H89: 446.4 | I89: 446.4 | J89: 444.75 | K89: 1922 | L89: 73633 | M89: 33247411
A90: 500165 | B90: KANSAI NERO | C90: A | D90: Q | E90: 389 | F90: 391 | G90: 381.9 | H90: 385.4 | I90: 385.4 | J90: 384.25 | K90: 675 | L90: 26322 | M90: 10212334
A91: 500166 | B91: GOODRICKE | C91: XC | D91: Q | E91: 195 | F91: 203.9 | G91: 195 | H91: 197.75 | I91: 197.75 | J91: 196.6 | K91: 501 | L91: 40329 | M91: 8065360
A92: 500168 | B92: GOODYEAR (I) | C92: B | D92: Q | E92: 800 | F92: 921 | G92: 800 | H92: 878.65 | I92: 878.65 | J92: 779.75 | K92: 17808 | L92: 559109 | M92: 492292799
A93: 500170 | B93: GTN INDUS | C93: B | D93: Q | E93: 14.12 | F93: 15.2 | G93: 14.12 | H93: 15.17 | I93: 15.18 | J93: 14.48 | K93: 28 | L93: 5553 | M93: 83929
A94: 500171 | B94: GHCL LTD | C94: B | D94: Q | E94: 279.5 | F94: 283.35 | G94: 271.25 | H94: 274.35 | I94: 275.05 | J94: 278.35 | K94: 2083 | L94: 113961 | M94: 31659864
A95: 500173 | B95: GUJ.FLOURO | C95: B | D95: Q | E95: 536 | F95: 540 | G95: 529 | H95: 533.65 | I95: 533.65 | J95: 533.6 | K95: 195 | L95: 2245 | M95: 1206394
A96: 500174 | B96: GUJ.LEASE | C96: B | D96: Q | E96: 1.81 | F96: 1.98 | G96: 1.81 | H96: 1.81 | I96: 1.81 | J96: 1.9 | K96: 10 | L96: 8287 | M96: 15264
A97: 500179 | B97: HCL INFOSYS | C97: B | D97: Q | E97: 51 | F97: 53.3 | G97: 50.2 | H97: 52.3 | I97: 52.3 | J97: 50.9 | K97: 12460 | L97: 3605464 | M97: 187049619
A98: 500180 | B98: HDFC BANK | C98: A | D98: Q | E98: 1288 | F98: 1295 | G98: 1279.8 | H98: 1282.75 | I98: 1282.75 | J98: 1284.4 | K98: 1101 | L98: 46469 | M98: 59844220
A99: 500182 | B99: HEROMOTOCO | C99: A | D99: Q | E99: 3525.3 | F99: 3525.3 | G99: 3462.4 | H99: 3473.6 | I99: 3473.6 | J99: 3490.4 | K99: 2340 | L99: 29617 | M99: 103243746
A100: 500183 | B100: HIMACHAL FUT | C100: B | D100: Q | E100: 15.15 | F100: 15.33 | G100: 14.98 | H100: 15.03 | I100: 15.03 | J100: 15.12 | K100: 828 | L100: 1052306 | M100: 15953351
A101: 500184 | B101: HSCL | C101: B | D101: Q | E101: 45.2 | F101: 46 | G101: 43.3 | H101: 44.4 | I101: 44.4 | J101: 45 | K101: 2170 | L101: 660674 | M101: 29715347
A102: 500185 | B102: HIND.CONSTN. | C102: A | D102: Q | E102: 36.7 | F102: 37 | G102: 35.4 | H102: 35.75 | I102: 35.75 | J102: 36.25 | K102: 3389 | L102: 1250096 | M102: 45293856
A103: 500186 | B103: HIND.OIL EXP | C103: B | D103: Q | E103: 62.6 | F103: 63.7 | G103: 59.55 | H103: 61.15 | I103: 61.8 | J103: 62.15 | K103: 4071 | L103: 796307 | M103: 49188643
A104: 500187 | B104: HSIL | C104: B | D104: Q | E104: 348.6 | F104: 349.35 | G104: 344 | H104: 344.6 | I104: 344.6 | J104: 348.25 | K104: 191 | L104: 9160 | M104: 3167335
A105: 500188 | B105: HINDUS.ZI | C105: A | D105: Q | E105: 259.9 | F105: 259.9 | G105: 246.95 | H105: 249.9 | I105: 249.9 | J105: 252.6 | K105: 1884 | L105: 130617 | M105: 32920366
A106: 500189 | B106: HINDUJA VENT | C106: B | D106: Q | E106: 459.85 | F106: 460 | G106: 453.3 | H106: 455.95 | I106: 455.3 | J106: 459.5 | K106: 40 | L106: 2234 | M106: 1023292
A107: 500191 | B107: HMT LTD. | C107: T | D107: Q | E107: 38.75 | F107: 38.75 | G107: 37 | H107: 37.1 | I107: 37.1 | J107: 38 | K107: 121 | L107: 30861 | M107: 1155156
A108: 500192 | B108: PRAG BOSIMI | C108: XT | D108: Q | E108: 3.45 | F108: 3.66 | G108: 3.42 | H108: 3.63 | I108: 3.64 | J108: 3.52 | K108: 35 | L108: 5217 | M108: 18578
A109: 500193 | B109: HOTEL LEELA. | C109: B | D109: Q | E109: 17.7 | F109: 18.1 | G109: 17.7 | H109: 17.95 | I109: 17.95 | J109: 17.75 | K109: 149 | L109: 44687 | M109: 802695
A110: 500199 | B110: I.G.PETRO | C110: B | D110: Q | E110: 243.85 | F110: 244 | G110: 227.2 | H110: 230.3 | I110: 232.2 | J110: 241.65 | K110: 850 | L110: 34427 | M110: 8147873
A111: 500201 | B111: IND.GLYCOLS | C111: B | D111: Q | E111: 136.4 | F111: 137.7 | G111: 131 | H111: 131.8 | I111: 131.8 | J111: 135.35 | K111: 1734 | L111: 88180 | M111: 11818856
A112: 500206 | B112: MARGO FIN | C112: XT | D112: Q | E112: 11.37 | F112: 11.37 | G112: 11.37 | H112: 11.37 | I112: 11.37 | J112: 11.9 | K112: 7 | L112: 1207 | M112: 13723
A113: 500207 | B113: INDO RAMA | C113: B | D113: Q | E113: 32 | F113: 32.6 | G113: 31.1 | H113: 31.85 | I113: 31.85 | J113: 31.95 | K113: 128 | L113: 14756 | M113: 473117
A114: 500209 | B114: INFOSYS LTD | C114: A | D114: Q | E114: 1041 | F114: 1041.15 | G114: 1025 | H114: 1026.65 | I114: 1026.65 | J114: 1041.15 | K114: 4454 | L114: 111515 | M114: 114904634
A115: 500210 | B115: INGERSOLL | C115: B | D115: Q | E115: 756.9 | F115: 756.9 | G115: 744.15 | H115: 748.25 | I115: 752.25 | J115: 748.05 | K115: 297 | L115: 4234 | M115: 3172333
A116: 500211 | B116: INSILCO LTD. | C116: XT | D116: Q | E116: 22.5 | F116: 22.85 | G116: 22.2 | H116: 22.5 | I116: 22.3 | J116: 21.9 | K116: 75 | L116: 30873 | M116: 698629
A117: 500213 | B117: INTER.TRAVEL | C117: XC | D117: Q | E117: 208 | F117: 214 | G117: 205 | H117: 206.95 | I117: 207 | J117: 208.05 | K117: 117 | L117: 9190 | M117: 1929344
A118: 500214 | B118: ION EXCHANGE | C118: XT | D118: Q | E118: 297.8 | F118: 298 | G118: 288.05 | H118: 292 | I118: 293.9 | J118: 294.8 | K118: 82 | L118: 5800 | M118: 1704230
A119: 500215 | B119: AGRO TECH FO | C119: B | D119: Q | E119: 510 | F119: 512 | G119: 505.05 | H119: 507.2 | I119: 507.2 | J119: 510 | K119: 45 | L119: 1438 | M119: 733581
A120: 500219 | B120: JAIN IRRIG | C120: A | D120: Q | E120: 96.2 | F120: 97 | G120: 93 | H120: 93.9 | I120: 93.9 | J120: 95.75 | K120: 2340 | L120: 478961 | M120: 45573745
A121: 500220 | B121: JASCH INDUST | C121: XD | D121: Q | E121: 42.25 | F121: 43.9 | G121: 42 | H121: 42.75 | I121: 42.8 | J121: 43.1 | K121: 67 | L121: 9627 | M121: 411883
A122: 500223 | B122: JCT LTD | C122: XC | D122: Q | E122: 6.13 | F122: 6.49 | G122: 6.13 | H122: 6.24 | I122: 6.24 | J122: 6.15 | K122: 1208 | L122: 1845187 | M122: 11712397
A123: 500227 | B123: JINDAL POLYF | C123: B | D123: Q | E123: 412 | F123: 427.05 | G123: 410 | H123: 418.15 | I123: 418.15 | J123: 417.1 | K123: 1898 | L123: 111818 | M123: 47141134
A124: 500228 | B124: JSWSL | C124: A | D124: Q | E124: 1800 | F124: 1810.3 | G124: 1750 | H124: 1764.15 | I124: 1764.15 | J124: 1788.9 | K124: 3936 | L124: 62357 | M124: 111390091
A125: 500231 | B125: UMANG DAIR | C125: B | D125: Q | E125: 80.7 | F125: 83.25 | G125: 77 | H125: 77.95 | I125: 77.95 | J125: 79.65 | K125: 707 | L125: 36478 | M125: 2912989
A126: 500233 | B126: KAJARIA CER. | C126: A | D126: Q | E126: 705.8 | F126: 709.75 | G126: 703.05 | H126: 705.85 | I126: 709 | J126: 707.15 | K126: 97 | L126: 1041 | M126: 734991
A127: 500234 | B127: KAKATIYA CEM | C127: B | D127: Q | E127: 393 | F127: 423 | G127: 393 | H127: 401.8 | I127: 401.8 | J127: 391.6 | K127: 5156 | L127: 91759 | M127: 37643541
A128: 500235 | B128: KALYANI STEL | C128: B | D128: Q | E128: 346.15 | F128: 346.15 | G128: 332 | H128: 334.6 | I128: 334.6 | J128: 343.25 | K128: 1480 | L128: 61673 | M128: 20879471
A129: 500236 | B129: KANELIND | C129: XT | D129: Q | E129: 3.41 | F129: 3.41 | G129: 3.09 | H129: 3.39 | I129: 3.39 | J129: 3.25 | K129: 7 | L129: 1773 | M129: 5776
A130: 500238 | B130: WHIRLPOOL | C130: B | D130: Q | E130: 1049.9 | F130: 1080 | G130: 1047.1 | H130: 1076.7 | I130: 1068.05 | J130: 1052.15 | K130: 239 | L130: 2538 | M130: 2711739
A131: 500239 | B131: KG DENIM | C131: XC | D131: Q | E131: 100.45 | F131: 102.7 | G131: 94.7 | H131: 95.4 | I131: 95.4 | J131: 98.65 | K131: 450 | L131: 55403 | M131: 5467970
A132: 500240 | B132: KINETIC ENG. | C132: XC | D132: Q | E132: 86.2 | F132: 88 | G132: 83.3 | H132: 86.95 | I132: 86.95 | J132: 84.25 | K132: 185 | L132: 17414 | M132: 1512816
A133: 500241 | B133: KIRL.BROS. | C133: B | D133: Q | E133: 172 | F133: 182.4 | G133: 172 | H133: 178.95 | I133: 179.15 | J133: 169.75 | K133: 975 | L133: 65532 | M133: 11667146
A134: 500243 | B134: KIRL INDUS | C134: B | D134: Q | E134: 869.8 | F134: 869.85 | G134: 851 | H134: 851 | I134: 851 | J134: 855.45 | K134: 22 | L134: 384 | M134: 328297
A135: 500245 | B135: KIRL.FERROUS | C135: XC | D135: Q | E135: 87.05 | F135: 87.5 | G135: 83.25 | H135: 84.45 | I135: 84 | J135: 87.4 | K135: 553 | L135: 117960 | M135: 9999650
A136: 500247 | B136: KOTAK MAH.BK | C136: A | D136: Q | E136: 783.55 | F136: 790.5 | G136: 778 | H136: 782.35 | I136: 782.35 | J136: 781.7 | K136: 1972 | L136: 56858 | M136: 44716489
A137: 500249 | B137: KSB PUMPS | C137: B | D137: Q | E137: 614.95 | F137: 614.95 | G137: 605 | H137: 610.2 | I137: 612.6 | J137: 609.05 | K137: 32 | L137: 568 | M137: 344666
A138: 500250 | B138: L.G.BALKRISH | C138: B | D138: Q | E138: 619.9 | F138: 629.5 | G138: 614 | H138: 618.35 | I138: 616 | J138: 619.85 | K138: 222 | L138: 3347 | M138: 2079908
A139: 500251 | B139: TRENT LTD. | C139: A | D139: Q | E139: 221.05 | F139: 222 | G139: 215.3 | H139: 216.8 | I139: 216.8 | J139: 219.65 | K139: 701 | L139: 15699 | M139: 3426648
A140: 500252 | B140: LAKSHMI MACH | C140: A | D140: Q | E140: 4569.9 | F140: 4698.5 | G140: 4381.1 | H140: 4396.2 | I140: 4396.2 | J140: 4538.7 | K140: 2715 | L140: 16929 | M140: 76745530
A141: 500253 | B141: LIC HOUS.FIN | C141: A | D141: Q | E141: 597 | F141: 601.95 | G141: 582.45 | H141: 587.2 | I141: 587.2 | J141: 592.5 | K141: 2434 | L141: 272031 | M141: 162183025
A142: 500254 | B142: UTTAMVALUE | C142: T | D142: Q | E142: 0.5 | F142: 0.52 | G142: 0.48 | H142: 0.52 | I142: 0.52 | J142: 0.5 | K142: 71 | L142: 446876 | M142: 232229
A143: 500255 | B143: LML LTD. | C143: B | D143: Q | E143: 9.1 | F143: 9.1 | G143: 8.6 | H143: 8.68 | I143: 8.78 | J143: 8.74 | K143: 168 | L143: 82332 | M143: 724510
A144: 500256 | B144: LOK.HOUS&CON | C144: Z | D144: Q | E144: 3.73 | F144: 3.74 | G144: 3.52 | H144: 3.74 | I144: 3.74 | J144: 3.57 | K144: 157 | L144: 1041327 | M144: 3893437
A145: 500257 | B145: LUPIN LTD. | C145: A | D145: Q | E145: 1499.9 | F145: 1502.75 | G145: 1482 | H145: 1484.65 | I145: 1484.65 | J145: 1491.2 | K145: 6684 | L145: 164225 | M145: 244915497
A146: 500259 | B146: LYKA LABS | C146: B | D146: Q | E146: 68.3 | F146: 70.8 | G146: 68 | H146: 68.7 | I146: 68.7 | J146: 67.95 | K146: 644 | L146: 78512 | M146: 5480827
A147: 500260 | B147: RAMCOCEM | C147: A | D147: Q | E147: 630 | F147: 630 | G147: 617.4 | H147: 622.9 | I147: 624.5 | J147: 627.15 | K147: 3369 | L147: 25912 | M147: 16185215
A148: 500264 | B148: MAFATLAL IND | C148: XC | D148: Q | E148: 313 | F148: 330 | G148: 313 | H148: 319.95 | I148: 320 | J148: 316.1 | K148: 87 | L148: 2448 | M148: 786113
A149: 500265 | B149: MAH.SEAMLESS | C149: B | D149: Q | E149: 216 | F149: 218.7 | G149: 211.5 | H149: 212.3 | I149: 216.95 | J149: 216.15 | K149: 194 | L149: 2719 | M149: 584980
A150: 500266 | B150: MAH.SCOOTER | C150: B | D150: Q | E150: 1515.25 | F150: 1580 | G150: 1501 | H150: 1565.1 | I150: 1575 | J150: 1514.95 | K150: 254 | L150: 3438 | M150: 5298934
A151: 500267 | B151: MAJESTIC AUT | C151: XC | D151: Q | E151: 125.9 | F151: 129 | G151: 120 | H151: 121.3 | I151: 121.55 | J151: 123.8 | K151: 213 | L151: 29414 | M151: 3672080
A152: 500268 | B152: MANALI PETRO | C152: B | D152: Q | E152: 38.1 | F152: 43.4 | G152: 38.1 | H152: 41.6 | I152: 41.6 | J152: 40.25 | K152: 5669 | L152: 1226481 | M152: 51493194
A153: 500271 | B153: MFSL | C153: A | D153: Q | E153: 560 | F153: 564.3 | G153: 552 | H153: 555.2 | I153: 555.2 | J153: 562.95 | K153: 1217 | L153: 40543 | M153: 22690627
A154: 500279 | B154: MIRC ELECT | C154: B | D154: Q | E154: 14.21 | F154: 14.49 | G154: 13.7 | H154: 13.96 | I154: 13.96 | J154: 13.65 | K154: 690 | L154: 214282 | M154: 3034236
A155: 500280 | B155: CENTURY ENKA | C155: B | D155: Q | E155: 282.25 | F155: 286.3 | G155: 273 | H155: 274.65 | I155: 274.65 | J155: 278.9 | K155: 1225 | L155: 48302 | M155: 13576099
A156: 500284 | B156: LORDS CHLORO | C156: XT | D156: Q | E156: 48 | F156: 48.4 | G156: 46.1 | H156: 48.4 | I156: 48.4 | J156: 46.1 | K156: 16 | L156: 2526 | M156: 121645
A157: 500285 | B157: SPICEJET LTD | C157: B | D157: Q | E157: 58.9 | F157: 58.9 | G157: 57.9 | H157: 58.05 | I157: 58.05 | J157: 58.45 | K157: 5138 | L157: 1849803 | M157: 107914152
A158: 500288 | B158: MOREPEN LAB. | C158: B | D158: Q | E158: 23.95 | F158: 24.5 | G158: 23.65 | H158: 23.85 | I158: 23.85 | J158: 23.8 | K158: 1236 | L158: 596990 | M158: 14385330
A159: 500290 | B159: MRF LTD. | C159: A | D159: Q | E159: 53825.1 | F159: 54600.65 | G159: 53255 | H159: 53805.05 | I159: 53805.05 | J159: 53757.5 | K159: 3595 | L159: 6203 | M159: 334952447
A160: 500292 | B160: HEIDEL CEM | C160: B | D160: Q | E160: 142.45 | F160: 144.8 | G160: 139 | H160: 141.25 | I160: 141.25 | J160: 139.5 | K160: 1126 | L160: 74895 | M160: 10649069
A161: 500294 | B161: NCC | C161: A | D161: Q | E161: 85.5 | F161: 86.55 | G161: 84.9 | H161: 86 | I161: 86 | J161: 84.9 | K161: 2429 | L161: 1076833 | M161: 92747158
A162: 500295 | B162: VEDL | C162: A | D162: Q | E162: 192.3 | F162: 201.1 | G162: 190.5 | H162: 197.3 | I162: 197.3 | J162: 191.5 | K162: 16998 | L162: 2502650 | M162: 492145892
A163: 500296 | B163: NAHAR SPG. | C163: B | D163: Q | E163: 126.5 | F163: 132.3 | G163: 125.45 | H163: 126.8 | I163: 126.85 | J163: 126.55 | K163: 717 | L163: 52597 | M163: 6804908
A164: 500298 | B164: NAT.PEROXIDE | C164: XC | D164: Q | E164: 958 | F164: 974 | G164: 930 | H164: 932.4 | I164: 932.4 | J164: 935.95 | K164: 265 | L164: 5953 | M164: 5669742
A165: 500300 | B165: GRASIM IND. | C165: A | D165: Q | E165: 998 | F165: 1026.85 | G165: 989 | H165: 1008.4 | I165: 1008.4 | J165: 4933.1 | K165: 5370 | L165: 145714 | M165: 146872310 | N165: SS
A166: 500301 | B166: NEPC INDIA | C166: T | D166: Q | E166: 1.37 | F166: 1.47 | G166: 1.37 | H166: 1.4 | I166: 1.45 | J166: 1.41 | K166: 31 | L166: 24318 | M166: 34145
A167: 500302 | B167: PEL | C167: A | D167: Q | E167: 1881.1 | F167: 1881.1 | G167: 1840 | H167: 1846.95 | I167: 1846.95 | J167: 1886.7 | K167: 1454 | L167: 6724 | M167: 12504161
A168: 500303 | B168: ADI BIR NUVO | C168: A | D168: Q | E168: 1399.05 | F168: 1429.5 | G168: 1390.25 | H168: 1410.15 | I168: 1409 | J168: 1396.1 | K168: 3108 | L168: 45177 | M168: 63904123
A169: 500304 | B169: NIIT LTD. | C169: B | D169: Q | E169: 98.4 | F169: 100.2 | G169: 96.8 | H169: 97.2 | I169: 97.2 | J169: 97.4 | K169: 1787 | L169: 173277 | M169: 17083530
A170: 500306 | B170: JAYKAY | C170: XD | D170: Q | E170: 3.96 | F170: 4.09 | G170: 3.96 | H170: 4 | I170: 4 | J170: 3.98 | K170: 9 | L170: 1613 | M170: 6443
A171: 500307 | B171: NIRLON | C171: B | D171: Q | E171: 214.5 | F171: 214.5 | G171: 212 | H171: 212.5 | I171: 212.5 | J171: 213.85 | K171: 45 | L171: 9528 | M171: 2021788
A172: 500312 | B172: ONGC CORPN | C172: A | D172: Q | E172: 268 | F172: 273.25 | G172: 266.65 | H172: 268.7 | I172: 268.7 | J172: 266.75 | K172: 5462 | L172: 615217 | M172: 166312738
A173: 500313 | B173: OIL COUNTRY | C173: B | D173: Q | E173: 36 | F173: 36 | G173: 32.2 | H173: 33.1 | I173: 33.6 | J173: 34.4 | K173: 296 | L173: 34385 | M173: 1172845
A174: 500314 | B174: ORIENT HOTEL | C174: B | D174: Q | E174: 26.25 | F174: 26.8 | G174: 25.45 | H174: 25.7 | I174: 25.45 | J174: 26.25 | K174: 76 | L174: 19519 | M174: 515530
A175: 500315 | B175: ORINTAL BANK | C175: A | D175: Q | E175: 132.8 | F175: 133.1 | G175: 127.7 | H175: 128.85 | I175: 128.85 | J175: 132.2 | K175: 2593 | L175: 494528 | M175: 64669404
A176: 500317 | B176: OSWAL AGRO. | C176: B | D176: Q | E176: 11.46 | F176: 11.69 | G176: 11.15 | H176: 11.19 | I176: 11.18 | J176: 11.46 | K176: 137 | L176: 26880 | M176: 304031
A177: 500319 | B177: INDIAN SUCRO | C177: XT | D177: Q | E177: 19.65 | F177: 19.65 | G177: 19.65 | H177: 19.65 | I177: 19.65 | J177: 18.95 | K177: 6 | L177: 383 | M177: 7525
A178: 500322 | B178: PANYAM CEMEN | C178: XC | D178: Q | E178: 62.5 | F178: 65.45 | G178: 62.2 | H178: 62.5 | I178: 62.5 | J178: 62.5 | K178: 288 | L178: 34276 | M178: 2184920
A179: 500325 | B179: RELIANCE | C179: A | D179: Q | E179: 1092 | F179: 1124.8 | G179: 1092 | H179: 1111.1 | I179: 1111.1 | J179: 1089.3 | K179: 15966 | L179: 1709509 | M179: 1903486107
A180: 500327 | B180: PILITA | C180: B | D180: Q | E180: 13.95 | F180: 14 | G180: 13.65 | H180: 13.83 | I180: 13.83 | J180: 13.41 | K180: 296 | L180: 205289 | M180: 2849295
A181: 500329 | B181: PENTAMED.G | C181: XD | D181: Q | E181: 0.76 | F181: 0.8 | G181: 0.76 | H181: 0.78 | I181: 0.79 | J181: 0.79 | K181: 78 | L181: 50093 | M181: 39149
A182: 500330 | B182: RAYMOND | C182: A | D182: Q | E182: 572 | F182: 576.65 | G182: 557.25 | H182: 564.6 | I182: 564.6 | J182: 568.9 | K182: 4123 | L182: 72518 | M182: 41328118
A183: 500331 | B183: PIDILITE | C183: A | D183: Q | E183: 734 | F183: 739.95 | G183: 721 | H183: 729.3 | I183: 731 | J183: 734 | K183: 1763 | L183: 49162 | M183: 35934486
A184: 500333 | B184: PIX TRANS | C184: XD | D184: Q | E184: 57.05 | F184: 59.2 | G184: 54.9 | H184: 56.65 | I184: 56.65 | J184: 56.95 | K184: 170 | L184: 19545 | M184: 1123413
A185: 500335 | B185: BIRLA CORPN. | C185: B | D185: Q | E185: 710 | F185: 728.4 | G185: 710 | H185: 724.75 | I185: 725 | J185: 718.75 | K185: 528 | L185: 11354 | M185: 8217820
A186: 500336 | B186: SURYA ROSHNI | C186: B | D186: Q | E186: 228.2 | F186: 232.15 | G186: 222 | H186: 224.05 | I186: 224.05 | J186: 229.25 | K186: 993 | L186: 44370 | M186: 10099695
A187: 500337 | B187: PRIME SECUR. | C187: B | D187: Q | E187: 31.95 | F187: 31.95 | G187: 31.3 | H187: 31.95 | I187: 31.95 | J187: 30.45 | K187: 544 | L187: 343097 | M187: 10946192
A188: 500338 | B188: PRISM CEMENT | C188: B | D188: Q | E188: 111 | F188: 115.7 | G188: 108 | H188: 108.9 | I188: 108.9 | J188: 109.65 | K188: 2025 | L188: 104305 | M188: 11677844
A189: 500339 | B189: RAIN | C189: B | D189: Q | E189: 53 | F189: 54.9 | G189: 50.65 | H189: 52.8 | I189: 52.8 | J189: 52.9 | K189: 1629 | L189: 278749 | M189: 14939340
A190: 500343 | B190: PUDUMJEE | C190: B | D190: Q | E190: 22.8 | F190: 26.1 | G190: 21.3 | H190: 25.1 | I190: 25.1 | J190: 21.75 | K190: 3765 | L190: 886869 | M190: 22282341
A191: 500346 | B191: PUN.COMMUNI. | C191: XD | D191: Q | E191: 37.7 | F191: 38.8 | G191: 37 | H191: 37.15 | I191: 37.15 | J191: 38 | K191: 74 | L191: 2183 | M191: 82456
A192: 500350 | B192: RSWM LTD | C192: B | D192: Q | E192: 455 | F192: 473.15 | G192: 454 | H192: 459.35 | I192: 459.35 | J192: 459.7 | K192: 332 | L192: 5809 | M192: 2689361
A193: 500354 | B193: RAJSH.SUGAR | C193: B | D193: Q | E193: 61 | F193: 61.2 | G193: 57.8 | H193: 58.7 | I193: 59 | J193: 60.25 | K193: 184 | L193: 6010 | M193: 360483
A194: 500355 | B194: RALLIS INDIA | C194: A | D194: Q | E194: 237.7 | F194: 240.4 | G194: 231 | H194: 233.4 | I194: 233.4 | J194: 237.6 | K194: 1118 | L194: 49627 | M194: 11735725
A195: 500356 | B195: RAMANEWS | C195: B | D195: Q | E195: 26.5 | F195: 26.7 | G195: 23.8 | H195: 24.65 | I195: 24.95 | J195: 26 | K195: 552 | L195: 105890 | M195: 2656795
A196: 500357 | B196: RAMA PAPER | C196: XD | D196: Q | E196: 20.6 | F196: 21.85 | G196: 20 | H196: 21.85 | I196: 21.85 | J196: 20.9 | K196: 33 | L196: 13380 | M196: 282040
A197: 500360 | B197: RAPICUT CARB | C197: XD | D197: Q | E197: 68 | F197: 68 | G197: 64 | H197: 64.1 | I197: 64.5 | J197: 63.6 | K197: 69 | L197: 8598 | M197: 558834
A198: 500365 | B198: RMGALLOY | C198: XD | D198: Q | E198: 6 | F198: 6.72 | G198: 6 | H198: 6.72 | I198: 6.72 | J198: 5.6 | K198: 215 | L198: 490637 | M198: 3229123
A199: 500366 | B199: ROLTA (I) | C199: B | D199: Q | E199: 65.25 | F199: 66.8 | G199: 64.2 | H199: 64.7 | I199: 64.7 | J199: 65.05 | K199: 3742 | L199: 347432 | M199: 22842484
A200: 500367 | B200: RUBFILA INT. | C200: XC | D200: Q | E200: 36.5 | F200: 36.5 | G200: 35.5 | H200: 35.7 | I200: 35.7 | J200: 36 | K200: 64 | L200: 18040 | M200: 647917
... 2992 more rows
